bitfinex/quotes_SOLUSD_20260309
["timestamp","ask_amount","ask_price","bid_price","bid_amount"]
[1773028043906,2.68558369,83.137,83.111,12.03210164]
[1773028046032,2.68558369,83.149,83.12,11.93281408]
[1773028046213,2.68558369,83.149,83.111,44.6964939]
[1773028046214,2.68558369,83.148,83.111,44.6964939]
[1773028046610,11.93281408,83.14,83.111,14.61623979]
[1773028046815,2.68558369,83.139,83.111,12.03210164]
[1773028047420,2.68558369,83.139,83.112,2.58413815]
[1773028049330,12.13281408,83.15,83.111,12.03210164]
[1773028049331,2.68558369,83.137,83.111,12.03210164]
[1773028049506,2.68558369,83.137,83.104,2.58413815]
[1773028049507,2.68558369,83.135,83.105,12.03297033]
[1773028050406,2.68558369,83.129,83.091,12.03499777]
[1773028050811,2.68558369,83.119,83.082,12.03630148]
[1773028051426,2.68558369,83.117,83.082,12.03630148]
[1773028051723,2.68558369,83.109,83.082,12.03630148]
[1773028052429,2.68558369,83.119,83.09,11.93281408]
[1773028052729,2.68558369,83.119,83.09,14.51695223]
[1773028052932,2.69643142,83.118,83.09,11.93281408]
[1773028053116,2.69643142,83.118,83.082,12.03630148]
[1773028053612,2.69643142,83.129,83.1,11.93281408]
[1773028053812,2.69643142,83.129,83.1,14.79296531]
[1773028054029,2.69643142,83.129,83.101,2.86015123]
[1773028056622,2.69643142,83.147,83.103,2.86015123]
[1773028056823,11.93281408,83.17,83.13,11.93281408]
[1773028057037,2.69643142,83.164,83.131,2.86015123]
[1773028057238,12.0248474,83.162,83.131,2.86015123]
[1773028058144,11.93281408,83.16,83.131,2.86015123]
[1773028058446,2.69643142,83.164,83.133,2.86015123]
[1773028058650,12.02459874,83.163,83.133,2.86015123]
[1773028058945,2.69643142,83.169,83.133,2.86015123]
[1773028060948,2.69643142,83.178,83.133,2.86015123]
[1773028061129,2.69643142,83.178,83.14,11.93281408]
[1773028061441,2.69643142,83.178,83.141,2.86015123]
[1773028061630,2.69643142,83.178,83.151,2.86015123]
[1773028062749,2.69643142,83.189,83.151,2.86015123]
[1773028062931,2.69643142,83.187,83.153,2.86015123]
[1773028063329,2.69643142,83.179,83.15,23.95921137]
[1773028063940,2.69643142,83.179,83.151,2.86015123]
[1773028065044,2.69643142,83.179,83.152,12.02616894]
[1773028065228,2.69643142,83.179,83.152,14.88632017]
[1773028065427,2.69643142,83.179,83.153,2.86015123]
[1773028067042,2.69643142,83.178,83.14,11.93281408]
[1773028068228,2.69643142,83.178,83.142,2.86015123]
[1773028068422,2.69643142,83.178,83.151,2.86015123]
[1773028069648,2.69643142,83.178,83.152,12.02616894]
[1773028069940,11.93281408,83.19,83.152,12.02616894]
[1773028069941,2.69643142,83.176,83.152,12.02616894]
[1773028070143,2.69643142,83.185,83.153,2.86015123]
[1773028071829,2.69643142,83.183,83.154,12.02587969]
[1773028072145,2.69643142,83.183,83.138,12.02819408]
[1773028072454,2.69643142,83.183,83.15,11.93281408]
[1773028072630,2.69643142,83.183,83.151,2.86015123]
[1773028074050,2.69643142,83.183,83.152,12.02616894]
[1773028074640,2.69643142,83.183,83.152,14.88632017]
[1773028075145,2.69643142,83.183,83.153,2.86015123]
[1773028076945,2.69643142,83.202,83.161,2.86015123]
[1773028077348,2.69643142,83.199,83.161,2.86015123]
[1773028078350,2.69643142,83.199,83.17,11.89649059]
[1773028078539,2.69643142,83.199,83.168,2.86015123]
[1773028078744,12.01951969,83.198,83.162,12.02472283]
[1773028079040,2.69643142,83.197,83.163,2.86015123]
[1773028079835,2.69643142,83.197,83.162,12.02472283]
[1773028080361,2.69643142,83.197,83.163,2.86015123]
[1773028080855,2.69643142,83.195,83.161,2.86015123]
[1773028081083,2.69643142,83.189,83.15,11.89649059]
[1773028081650,2.69643142,83.179,83.14,14.75664182]
[1773028082054,2.69643142,83.179,83.14,11.89649059]
[1773028082249,2.69643142,83.169,83.135,42.10019846]
[1773028082636,2.69643142,83.169,83.135,12.02862813]
[1773028083040,2.85546159,83.167,83.131,12.02920691]
[1773028085068,2.85546159,83.165,83.131,12.02920691]
[1773028086562,2.85546159,83.163,83.132,2.92735628]
[1773028087256,2.85546159,83.171,83.141,2.92735628]
[1773028087461,2.85546159,83.178,83.16,11.89649059]
[1773028088054,2.85546159,83.186,83.16,11.89649059]
[1773028088371,2.85546159,83.186,83.131,42.10222419]
[1773028088372,2.74182037,83.205,83.18,11.89649059]
[1773028088659,14.76033247,83.205,83.181,12.02197617]
[1773028089245,12.0185121,83.205,83.181,12.02197617]
[1773028089445,2.74182037,83.204,83.181,12.02197617]
[1773028090860,14.76061776,83.203,83.181,12.02197617]
[1773028091072,2.74182037,83.202,83.17,11.89649059]
[1773028091251,2.74182037,83.189,83.161,12.02486742]
[1773028092667,12.02096456,83.188,83.161,12.02486742]
[1773028092972,2.74182037,83.187,83.161,12.02486742]
[1773028093178,2.74182037,83.187,83.16,23.92136616]
[1773028095072,2.74182037,83.185,83.16,23.92136616]
[1773028096174,12.01993879,83.196,83.171,2.99249029]
[1773028096375,2.74182037,83.195,83.171,2.99249029]
[1773028096590,2.74182037,83.195,83.17,11.89649059]
[1773028096759,2.74182037,83.195,83.16,23.92136616]
[1773028097065,0.28432314,83.211,83.15,30.06590102]
[1773028097066,2.74182037,83.187,83.15,11.89649059]
[1773028097256,2.74182037,83.187,83.151,12.02631357]
[1773028097669,4.44206108,83.18,83.151,12.02631357]
[1773028097874,2.74182037,83.179,83.151,12.02631357]
[1773028098760,2.74182037,83.179,83.15,16.4684943]
[1773028098967,2.74182037,83.179,83.15,12.02643322]
[1773028099260,2.74182037,83.177,83.141,12.02776007]
[1773028100995,2.74182037,83.175,83.142,2.99249029]
[1773028101164,2.74182037,83.175,83.151,2.99249029]
[1773028102484,12.02298795,83.174,83.151,12.02631357]
[1773028102665,2.74182037,83.173,83.151,12.02631357]
[1773028103481,2.74182037,83.169,83.13,4.44206108]
[1773028104474,12.02515662,83.159,83.128,12.02964103]
[1773028104687,2.74182037,83.158,83.129,2.99249029]
[1773028105183,2.74182037,83.158,83.13,4.44206108]
[1773028105781,2.74182037,83.158,83.125,12.03005396]
[1773028106986,2.74182037,83.156,83.13,4.44206108]
[1773028107482,30.05902341,83.17,83.125,12.03005396]
[1773028107483,12.02424453,83.166,83.141,2.99249029]
[1773028108075,2.74182037,83.165,83.131,2.99249029]
[1773028118075,2.89061741,83.163,83.133,2.84169736]
[1773028118592,12.02443364,83.164,83.123,12.03036464]
[1773028118593,2.89061741,83.159,83.123,12.03036464]
[1773028118777,2.89061741,83.159,83.13,7.28375844]
[1773028119095,2.89061741,83.159,83.131,2.84169736]
[1773028120591,2.89061741,83.159,83.133,2.84169736]
[1773028121099,2.89061741,83.157,83.133,2.84169736]
[1773028123296,2.89061741,83.157,83.135,2.84169736]
[1773028124487,2.89061741,83.167,83.141,2.84169736]
[1773028126592,2.89061741,83.167,83.142,12.0276154]
[1773028126891,2.89061741,83.165,83.142,14.86931276]
[1773028127470,2.89061741,83.165,83.12,4.44206108]
[1773028127471,2.89061741,83.165,83.13,4.44206108]
[1773028128701,2.89061741,83.163,83.131,12.02910035]
[1773028130703,2.89061741,83.161,83.131,12.02920691]
[1773028130904,2.89061741,83.161,83.13,16.47133738]
[1773028134082,2.89061741,83.159,83.119,14.87264094]
[1773028134288,2.89061741,83.159,83.13,4.44206108]
[1773028134487,2.89061741,83.159,83.121,2.84169736]
[1773028135896,2.89061741,83.157,83.122,12.03050937]
[1773028137205,2.89061741,83.155,83.122,12.03050937]
[1773028139408,2.89061741,83.153,83.123,2.84169736]
[1773028139786,2.89061741,83.153,83.13,7.28721885]
[1773028140107,2.89061741,83.153,83.131,2.84169736]
[1773028140806,2.89061741,83.153,83.13,4.44552149]
[1773028141131,2.89061741,83.153,83.125,2.84169736]
[1773028142188,2.89061741,83.151,83.126,12.02993046]
[1773028142388,2.89061741,83.151,83.127,2.84169736]
[1773028142591,4.44552149,83.18,83.141,2.84169736]
[1773028142900,2.89061741,83.181,83.16,7.24270548]
[1773028143289,14.91259458,83.181,83.16,7.24270548]
[1773028143492,3.03713051,83.18,83.16,2.79718399]
[1773028143695,3.03713051,83.179,83.151,2.79718399]
[1773028144181,3.03713051,83.179,83.152,12.02616894]
[1773028144697,12.02240977,83.178,83.152,12.02616894]
[1773028144892,12.02240977,83.178,83.15,4.44552149]
[1773028144893,3.03713051,83.177,83.15,4.44552149]
[1773028146702,3.03713051,83.176,83.152,2.79718399]
[1773028147808,12.02226523,83.179,83.152,2.79718399]
[1773028148006,15.05939574,83.179,83.152,2.79718399]
[1773028148391,2.85067566,83.178,83.152,2.79718399]
[1773028149600,2.85067566,83.178,83.16,4.44552149]
[1773028150111,2.85067566,83.185,83.16,7.46754504]
[1773028150708,2.85067566,83.183,83.161,3.02202355]
[1773028151889,12.02092706,83.189,83.162,12.02472283]
[1773028152090,2.85067566,83.19,83.163,3.02202355]
[1773028154200,2.85067566,83.197,83.171,3.02202355]
[1773028155522,2.85067566,83.197,83.173,3.02202355]
[1773028156151,12.01929673,83.2,83.173,3.02202355]
[1773028157498,2.85067566,83.202,83.175,3.02202355]
[1773028157706,2.85067566,83.2,83.175,3.02202355]
[1773028157906,2.85067566,83.199,83.17,4.44552149]
[1773028158208,2.85067566,83.199,83.169,12.02364157]
[1773028158795,2.85067566,83.199,83.171,3.02202355]
[1773028159418,2.85067566,83.199,83.18,7.46754504]
[1773028159916,2.85067566,83.199,83.18,3.02202355]
[1773028160113,2.85067566,83.197,83.171,12.02334164]
[1773028160317,2.85067566,83.189,83.16,4.44552149]
[1773028161901,2.85067566,83.187,83.161,12.02486742]
[1773028167442,2.85067566,83.187,83.134,0.28432314]
[1773028167443,2.85067566,83.169,83.125,3.00487611]
[1773028167731,2.85067566,83.149,83.133,99.57014642]
[1773028167922,2.85067566,83.149,83.133,39.39019388]
[1773028168235,0.28432314,83.168,83.134,3.02265884]
[1773028169229,0.28432314,83.168,83.133,39.39019388]
[1773028169230,4.44552149,83.16,83.133,39.39019388]
[1773028169535,4.44552149,83.15,83.133,1e-08]
[1773028171031,12.02660284,83.149,83.133,1e-08]
[1773028172938,42.09310995,83.149,83.133,1e-08]
[1773028175632,4.44552149,83.14,83.105,3.02265884]
[1773028175822,4.44552149,83.13,83.105,3.02265884]
[1773028176018,4.44552149,83.14,83.105,3.02265884]
[1773028177141,12.02122862,83.187,83.131,3.02265884]
[1773028177322,12.02122862,83.187,83.161,3.02265884]
[1773028177516,12.02122862,83.187,83.136,3.02265884]
[1773028177517,4.44552149,83.17,83.136,3.02265884]
[1773028177716,4.44552149,83.15,83.12,4.44552149]
[1773028177927,4.44552149,83.15,83.122,3.02265884]
[1773028178334,4.44552149,83.16,83.122,3.02265884]
[1773028180037,0.14216157,83.168,83.131,3.02265884]
[1773028180233,4.44552149,83.16,83.131,3.02265884]
[1773028180639,4.44552149,83.17,83.131,3.02265884]
[1773028181925,4.44552149,83.17,83.133,3.02265884]
[1773028181926,12.02371075,83.169,83.133,3.02265884]
[1773028184737,12.04656048,83.169,83.134,12.02877282]
[1773028185038,12.02371075,83.169,83.135,3.02265884]
[1773028185237,0.02284973,83.168,83.135,3.02265884]
[1773028185824,0.02396448,83.159,83.128,3.02265884]
[1773028187048,0.02509898,83.139,83.1,3.02265884]
[1773028187241,3.69383402,83.156,83.1,3.02265884]
[1773028187242,0.02509898,83.129,83.1,3.02265884]
[1773028187443,0.02622665,83.136,83.102,3.02265884]
[1773028189429,0.02622665,83.136,83.104,3.02265884]
[1773028189637,12.02819408,83.138,83.104,3.02265884]
[1773028190342,0.02945545,83.184,83.104,3.02265884]
[1773028190545,0.02945545,83.169,83.131,3.02265884]
[1773028190746,0.02945545,83.159,83.131,3.02265884]
[1773028190943,0.02945545,83.149,83.121,3.02265884]
[1773028191451,12.05605829,83.149,83.121,3.02265884]
[1773028191752,12.02660284,83.149,83.121,3.02265884]
[1773028192833,12.02660284,83.149,83.123,3.02265884]
[1773028193443,12.02660284,83.149,83.125,3.02265884]
[1773028199338,0.03871353,83.148,83.117,3.02265884]
[1773028199550,4.44701759,83.14,83.117,3.02265884]
[1773028199760,4.48573112,83.14,83.117,3.02265884]
[1773028199958,0.03871353,83.139,83.117,3.02265884]
[1773028200373,0.03871353,83.129,83.103,3.02265884]
[1773028200540,4.44701759,83.14,83.104,3.02265884]
[1773028200859,0.28432314,83.148,83.111,3.02265884]
[1773028201765,30.06313785,83.159,83.121,3.02265884]
[1773028202061,0.04061985,83.157,83.121,3.02265884]
[1773028202249,4.44701759,83.15,83.121,3.02265884]
[1773028202448,12.02530123,83.158,83.121,3.02265884]
[1773028204353,0.04162608,83.161,83.1,60.16792784]
[1773028204354,12.0245035,83.164,83.131,3.02265884]
[1773028204557,12.30716654,83.175,83.141,3.02265884]
[1773028204860,4.44701759,83.16,83.123,3.02265884]
[1773028206070,0.04442177,83.171,83.131,3.02265884]
[1773028206361,12.0228434,83.175,83.141,3.02265884]
[1773028207765,0.04704671,83.169,83.141,3.02265884]
[1773028208746,4.44701759,83.16,83.141,3.02265884]
[1773028209060,4.44701759,83.16,83.13,3.02265884]
[1773028209061,0.04875732,83.159,83.13,3.02265884]
[1773028209461,0.04961327,83.149,83.121,3.02265884]
[1773028209641,4.44701759,83.15,83.121,3.02265884]
[1773028210863,16.47350737,83.15,83.123,3.02265884]
[1773028212560,4.44701759,83.16,83.123,3.02265884]
[1773028213748,12.02515662,83.159,83.124,12.03021991]
[1773028213950,12.02422963,83.166,83.131,3.02265884]
[1773028215851,399.8984299,88.416,83.13,4.44701759]
[1773028215852,4.44701759,83.18,83.133,3.02265884]
[1773028216060,4.44701759,83.18,83.141,3.02265884]
[1773028216451,0.04090836,83.169,83.141,3.02265884]
[1773028216772,4.44701759,83.16,83.141,3.02265884]
[1773028217482,4.44701759,83.16,83.133,3.02265884]
[1773028217691,42.0769166,83.181,83.12,3.02265884]
[1773028217692,0.03939237,83.149,83.12,3.02265884]
[1773028217970,0.03939237,83.139,83.113,3.02265884]
[1773028218166,12.02660284,83.149,83.103,3.02265884]
[1773028218167,4.44701759,83.13,83.103,3.02265884]
[1773028218372,4.44701759,83.12,83.103,3.02265884]
[1773028218954,4.44701759,83.13,83.103,3.02265884]
[1773028220460,4.44701759,83.12,83.103,3.02265884]
[1773028221273,4.44701759,83.12,83.03,9.57983874]
[1773028221274,4.44701759,83.11,83.088,3.02265884]
[1773028221469,4.44701759,83.1,83.073,3.02265884]
[1773028222672,4.44701759,83.1,83.075,3.02265884]
[1773028223167,30.07907625,83.115,83.075,3.02265884]
[1773028223168,12.03279191,83.107,83.075,3.02265884]
[1773028225261,12.03279191,83.107,83.077,3.02265884]
[1773028227267,12.0306541,83.121,83.081,3.02265884]
[1773028227579,4.44701759,83.12,83.081,3.02265884]
[1773028228783,12.02981869,83.127,83.091,3.02265884]
[1773028229382,4.44701759,83.13,83.093,3.02265884]
[1773028229970,4.44701759,83.12,83.093,3.02265884]
[1773028230671,3.69383402,83.135,83.093,3.02265884]
[1773028230672,4.44701759,83.13,83.093,3.02265884]
[1773028231357,12.02949632,83.129,83.094,12.03456326]
[1773028231581,12.02949632,83.129,83.095,3.02265884]
[1773028232670,12.02949632,83.129,83.094,12.03456326]
[1773028232671,12.02949632,83.129,83.101,3.02265884]
[1773028233572,12.02804941,83.139,83.103,3.02265884]
[1773028234077,4.44701759,83.12,83.103,3.02265884]
[1773028234272,4.44701759,83.11,83.083,3.02265884]
[1773028234586,4.44701759,83.12,83.083,3.02265884]
[1773028234788,4.44701759,83.13,83.091,3.02265884]
[1773028235691,4.44701759,83.12,83.093,3.02265884]
[1773028237998,4.44701759,83.13,83.094,12.03456326]
[1773028238295,4.44701759,83.13,83.095,3.02265884]
[1773028239973,4.44701759,83.12,83.095,3.02265884]
[1773028240173,12.03094358,83.119,83.095,3.02265884]
[1773028242980,12.03094358,83.119,83.097,3.02265884]
[1773028243180,12.02949632,83.129,83.097,3.02265884]
[1773028243892,4.44701759,83.12,83.097,3.02265884]
[1773028245270,4.44701759,83.13,83.097,3.02265884]
[1773028246091,4.44701759,83.13,83.099,3.02265884]
[1773028247488,42.10323713,83.129,83.099,3.02265884]
[1773028250087,4.44701759,83.11,83.071,30.09444863]
[1773028250291,2.76211917,83.118,83.072,42.13212634]
[1773028250490,2.76211917,83.118,83.08,4.44701759]
[1773028251974,12.03123308,83.117,83.082,12.03630148]
[1773028252176,12.03123308,83.117,83.083,2.90343535]
[1773028254097,2.76211917,83.116,83.085,2.90343535]
[1773028254299,4.44701759,83.09,83.063,2.90343535]
[1773028254482,2.76211917,83.089,83.063,2.90343535]
[1773028255197,2.76211917,83.089,83.068,2.90343535]
[1773028255401,2.76211917,83.089,83.069,43.36344969]
[1773028255801,12.03445365,83.095,83.07,2.90343535]
[1773028257397,4.44701759,83.1,83.069,52.49808918]
[1773028257398,4.44701759,83.1,83.072,2.90343535]
[1773028257596,7.20913676,83.11,83.072,2.90343535]
[1773028257902,2.76211917,83.109,83.072,2.90343535]
[1773028258800,14.79451036,83.109,83.074,2.90343535]
[1773028260379,12.03120717,83.118,83.081,2.90343535]
[1773028261499,2.76211917,83.117,83.083,2.90343535]
[1773028263797,12.03137783,83.116,83.085,2.8467702]
[1773028264006,2.76386652,83.115,83.085,2.8467702]
[1773028265102,4.45083061,83.11,83.085,2.8467702]
[1773028265603,12.03166734,83.114,83.077,2.8467702]
[1773028265604,4.45083061,83.1,83.077,2.8467702]
[1773028265785,7.21469713,83.1,83.077,2.8467702]
[1773028266388,2.76386652,83.1,83.077,2.8467702]
[1773028266713,14.79553386,83.114,83.081,2.8467702]
[1773028267706,2.76386652,83.118,83.083,2.8467702]
[1773028269008,4.45083061,83.11,83.083,2.8467702]
[1773028269308,2.0,99.89,83.091,2.83070484]
[1773028269309,2.79353748,83.158,83.091,2.83070484]
[1773028269490,4.45083061,83.13,83.091,2.83070484]
[1773028269695,2.79353748,83.129,83.093,2.83070484]
[1773028269894,2.79353748,83.109,83.088,12.03540715]
[1773028270115,2.79353748,83.109,83.088,14.86611199]
[1773028270404,2.79353748,83.109,83.089,2.83070484]
[1773028270910,3.69383402,83.135,83.091,2.90809816]
[1773028271609,4.45083061,83.13,83.091,2.90809816]
[1773028271910,4.45083061,83.12,83.093,2.90809816]
[1773028272904,0.24868454,83.119,83.093,2.90809816]
[1773028273110,4.45083061,83.11,83.093,2.90809816]
[1773028273999,12.03239119,83.109,83.086,2.90809816]
[1773028276800,4.45083061,83.1,83.079,2.90809816]
[1773028277211,0.23847795,83.099,83.074,12.03745347]
[1773028277407,4.45083061,83.09,83.072,2.90809816]
[1773028278294,0.23847795,83.099,83.072,2.90809816]
[1773028278993,16.48457179,83.1,83.074,2.90809816]
[1773028280014,4.45083061,83.11,83.074,2.90809816]
[1773028280214,12.03239119,83.109,83.074,2.90809816]
[1773028281497,12.03239119,83.109,83.076,2.90809816]
[1773028283536,42.10850409,83.119,83.083,2.90809816]
[1773028283734,12.02945489,83.13,83.101,2.90809816]
[1773028285825,12.02804941,83.139,83.102,12.03340473]
[1773028286004,12.02804941,83.139,83.103,2.90809816]
[1773028287317,4.45083061,83.13,83.103,2.90809816]
[1773028288526,12.02881966,83.134,83.105,2.90809816]
[1773028288828,12.02660284,83.149,83.121,2.90809816]
[1773028290012,0.20835855,83.148,83.121,2.90809816]
[1773028291110,12.02689213,83.147,83.121,2.90809816]
[1773028293029,4.45083061,83.16,83.122,2.90809816]
[1773028293238,12.02371075,83.169,83.133,2.90809816]
[1773028293526,12.02082006,83.189,83.151,2.90809816]
[1773028294322,12.17277971,83.22,83.171,2.90809816]
[1773028294323,12.01807518,83.208,83.171,2.90809816]
[1773028294522,0.2,83.22,83.145,0.28432314]
[1773028294523,4.65083061,83.21,83.181,2.90809816]
[1773028294715,0.2,83.22,83.191,2.80809816]
[1773028294919,7.75873193,83.249,83.211,2.75152677]
[1773028295123,0.2,83.28,83.23,4.45083061]
[1773028295124,7.75454992,83.269,83.23,4.45083061]
[1773028295309,4.45083061,83.24,83.21,4.45083061]
[1773028295826,4.45083061,83.24,83.201,12.0190863]
[1773028296010,0.68920651,83.239,83.201,12.0190863]
[1773028296419,19.71475428,83.257,83.22,4.45083061]
[1773028296605,4.65083061,83.26,83.22,4.45083061]
[1773028296805,12.01165707,83.253,83.22,4.45083061]
[1773028297034,4.65083061,83.26,83.221,2.75152677]
[1773028297219,4.45083061,83.24,83.211,2.75152677]
[1773028297423,4.45083061,83.24,83.212,2.75152677]
[1773028297723,12.0121563,83.249,83.211,2.75152677]
[1773028297925,4.45083061,83.24,83.211,2.75152677]
[1773028298235,0.68598334,83.239,83.211,2.75152677]
[1773028298619,4.45083061,83.24,83.211,2.75152677]
[1773028299632,12.01359939,83.239,83.211,2.75152677]
[1773028300030,0.2,83.25,83.213,2.75152677]
[1773028300031,12.01279085,83.245,83.213,2.75152677]
[1773028300228,12.01279085,83.245,83.212,12.01749747]
[1773028300229,12.0121563,83.249,83.221,2.75152677]
[1773028300608,0.2,83.25,83.221,2.75152677]
[1773028300812,0.68133287,83.249,83.213,2.75152677]
[1773028301131,16.62689121,83.25,83.213,2.75152677]
[1773028301734,24.05668461,83.25,83.215,2.75152677]
[1773028302428,12.1760606,83.25,83.221,2.75152677]
[1773028302636,0.1639553,83.25,83.23,11.88062401]
[1773028302839,0.1639553,83.25,83.217,2.75152677]
[1773028303015,0.1639553,83.25,83.221,2.75152677]
[1773028304039,0.1639553,83.25,83.223,2.75152677]
[1773028304217,0.1639553,83.25,83.231,2.75152677]
[1773028305630,0.2,83.26,83.232,2.75152677]
[1773028305822,7.66092733,83.262,83.242,2.75152677]
[1773028306022,7.66092733,83.262,83.244,2.75152677]
[1773028306424,11.88062401,83.25,83.22,11.88062401]
[1773028306726,14.61321258,83.26,83.221,12.01619783]
[1773028306925,2.73258857,83.259,83.221,12.01619783]
[1773028307436,7.66092733,83.262,83.23,11.88062401]
[1773028307637,11.88062401,83.26,83.23,11.88062401]
[1773028307838,11.88062401,83.26,83.221,42.05669241]
[1773028308136,11.88062401,83.26,83.23,11.88062401]
[1773028308337,2.73258857,83.302,83.262,2.75152677]
[1773028308521,30.00999346,83.306,83.271,2.75152677]
[1773028308719,2.73258857,83.279,83.243,2.75152677]
[1773028308934,12.00638739,83.289,83.23,11.88062401]
[1773028308935,2.73258857,83.269,83.23,11.88062401]
[1773028309930,2.73258857,83.268,83.231,12.01475411]
[1773028310126,2.73258857,83.279,83.24,11.88062401]
[1773028310939,2.73258857,83.279,83.241,2.75152677]
[1773028311440,2.73258857,83.279,83.25,11.88062401]
[1773028311738,2.73258857,83.279,83.251,2.75152677]
[1773028312125,14.74056186,83.278,83.251,2.75152677]
[1773028312433,14.74056186,83.278,83.252,12.01172344]
[1773028312639,14.74056186,83.278,83.253,2.75152677]
[1773028313334,12.00797329,83.278,83.253,2.75152677]
[1773028313539,2.73258857,83.277,83.247,2.75152677]
[1773028314040,30.01978365,83.279,83.232,0.28432314]
[1773028314041,2.73258857,83.268,83.232,12.01460976]
[1773028314339,2.73258857,83.249,83.224,12.01573971]
[1773028314541,2.73258857,83.249,83.22,2.75152677]
[1773028314724,2.73258857,83.249,83.213,2.75152677]
[1773028317242,2.73258857,83.247,83.212,12.01736997]
[1773028317447,2.73258857,83.239,83.212,12.01736997]
[1773028318439,2.73258857,83.229,83.207,12.01820954]
[1773028318644,2.73258857,83.229,83.199,2.75152677]
[1773028318645,2.73258857,83.229,83.201,12.01896297]
[1773028318821,2.73258857,83.229,83.201,14.77048974]
[1773028319140,2.73258857,83.229,83.202,2.75152677]
[1773028319618,12.01518719,83.228,83.202,2.75152677]
[1773028319817,2.73258857,83.227,83.202,2.75152677]
[1773028320236,2.73258857,83.227,83.203,12.01879739]
[1773028320449,2.73258857,83.227,83.204,2.75152677]
[1773028320828,2.73258857,83.219,83.19,2.75152677]
[1773028321157,2.73258857,83.209,83.181,12.02197617]
[1773028321331,2.73258857,83.209,83.175,2.75152677]
[1773028321332,2.73258857,83.209,83.176,12.02264437]
[1773028321730,2.73258857,83.207,83.176,12.02264437]
[1773028323041,2.80209287,83.205,83.176,12.02264437]
[1773028323828,2.80209287,83.205,83.155,0.28432314]
[1773028323829,2.80209287,83.199,83.161,12.02486742]
[1773028324029,2.80209287,83.189,83.161,12.02486742]
[1773028324231,11.88465165,83.18,83.154,2.99887045]
[1773028324448,2.80209287,83.188,83.154,2.99887045]
[1773028325046,2.80209287,83.186,83.155,12.02573507]
[1773028326135,2.80209287,83.186,83.156,2.99887045]
[1773028326938,2.80209287,83.186,83.155,12.02573507]
[1773028327135,2.80209287,83.179,83.152,2.99887045]
[1773028329335,2.80209287,83.179,83.154,2.90834361]
[1773028331234,11.88465165,83.2,83.161,2.90834361]
[1773028331453,12.01786943,83.21,83.155,42.09007275]
[1773028331454,3.01540344,83.208,83.18,11.88465165]
[1773028331647,3.01540344,83.23,83.201,2.90834361]
[1773028332154,3.01540344,83.219,83.181,2.90834361]
[1773028332348,3.01540344,83.209,83.181,2.90834361]
[1773028332751,3.01540344,83.219,83.19,11.88465165]
[1773028332940,15.03044627,83.229,83.191,2.90834361]
[1773028333142,3.01540344,83.228,83.191,2.90834361]
[1773028333349,3.01540344,83.226,83.193,2.90834361]
[1773028333950,12.01533156,83.227,83.188,12.02095667]
[1773028333951,3.01540344,83.219,83.188,12.02095667]
[1773028335061,11.88465165,83.22,83.189,2.90834361]
[1773028335361,11.88465165,83.22,83.165,0.28432314]
[1773028335362,3.01540344,83.226,83.193,2.90834361]
[1773028335744,7.46319279,83.242,83.193,2.90834361]
[1773028335745,14.90005509,83.22,83.193,2.90834361]
[1773028336051,3.01540344,83.219,83.193,2.90834361]
[1773028336284,14.90005509,83.23,83.193,2.90834361]
[1773028336948,14.90005509,83.23,83.192,42.071353]
[1773028336949,3.01540344,83.239,83.201,2.90834361]
[1773028337357,3.01540344,83.229,83.201,2.90834361]
[1773028337564,3.01540344,83.229,83.202,14.92728546]
[1773028339359,3.01540344,83.229,83.203,2.90834361]
[1773028340963,3.01540344,83.229,83.204,12.01865294]
[1773028341145,3.01540344,83.229,83.205,2.90834361]
[1773028342341,7.46319279,83.242,83.205,2.90834361]
[1773028342342,3.01540344,83.239,83.205,2.90834361]
[1773028342542,30.02833456,83.255,83.204,42.06528531]
[1773028342543,3.01540344,83.255,83.221,2.90834361]
[1773028342757,12.00984807,83.265,83.231,2.90834361]
[1773028342949,12.00984807,83.265,83.233,2.90834361]
[1773028343149,3.01540344,83.264,83.233,2.90834361]
[1773028344845,3.01540344,83.272,83.243,2.90834361]
[1773028345368,7.48213837,83.274,83.251,2.90834361]
[1773028345759,3.01540344,83.273,83.251,2.90834361]
[1773028345955,7.48213837,83.274,83.251,2.90834361]
[1773028347143,7.48213837,83.274,83.252,12.01172344]
[1773028347342,3.01540344,83.273,83.252,12.01172344]
[1773028347746,7.48213837,83.274,83.253,2.90834361]
[1773028348862,0.2,83.29,83.261,2.90834361]
[1773028349457,0.2,83.29,83.245,0.28432314]
[1773028349458,1e-08,83.29,83.27,4.43353927]
[1773028349755,3.01540344,83.288,83.262,12.0102808]
[1773028349957,1e-08,83.29,83.263,2.90834361]
[1773028350155,1e-08,83.29,83.271,2.90834361]
[1773028350757,1e-08,83.29,83.262,42.0359828]
[1773028350758,3.01540344,83.289,83.262,14.91862441]
[1773028351054,3.01540344,83.289,83.262,12.0102808]
[1773028351446,3.01540344,83.288,83.256,12.01114634]
[1773028352163,3.01540344,83.288,83.256,42.03901219]
[1773028352368,1e-08,83.29,83.261,2.90834361]
[1773028352673,3.01540344,83.289,83.261,2.90834361]
[1773028352863,3.01540344,83.289,83.256,42.03901219]
[1773028353173,1e-08,83.29,83.261,2.82137781]
[1773028353384,1e-08,83.29,83.272,12.0088385]
[1773028356574,1e-08,83.29,83.263,2.82137781]